Workbook

Sheet Arkusz1
A1: OGÓLNOPOLSKA KAMPANIA WSPIERANIA SPRAWNOŚCI FIZYCZNEJ
A2: TEST COOPERA DLA WSZYSTKICH WIOSNA 2021
A3: PROGRAM WSPÓŁFINANSOWANY PRZEZ MINISTERSTWO KULTURY, DZIEDZICTWA NARODOWEGO I SPORTU | K3: Zestawienie
A4: Miasto: | F4: Adres i nazwa obiektu: | K4: Pozycja | L4: Ilość | N4: Wynik | P4: Ilość osób
A5: Lp. | B5: Imię | C5: Nazwisko | D5: Płeć | E5: Nr startowy | F5: Wiek | G5: Dystans | H5: Wynik | I5: Szkoła / Uczelnia / Drużyna | K5: Ilość mężczyzn | L5: =COUNTIF($D$7:$D$207,"M") -> 88 | N5: Bardzo dobrze | P5: =COUNTIF($H$7:$H$207,"Bardzo dobrze") -> 41
D6: K / M | F6: lata | G6: metry | K6: Ilość kobiet | L6: =COUNTIF($D$7:$D$207,"K") -> 52 | N6: Dobrze | P6: =COUNTIF($H$7:$H$207,"Dobrze") -> 42
A7: 1 | B7: WERONIKA | C7: BUSIŃSKA | D7: K | E7: 1 | F7: 11 | G7: 2050 | H7: DOBRZE | I7: SP11 | K7: Łącznie | L7: =SUM($D$797:$D$798) -> 140 | N7: Średnio | P7: =COUNTIF($H$7:$H$207,"Średnio") -> 32
A8: =A7+1 -> 2 | B8: RAFAŁ | C8: BUSIŃSKI | D8: M | E8: 2 | F8: 8 | G8: 2000 | H8: DOBRZE | I8: SP11 | K8: Łączny dystans | L8: =SUM($G$7:$G$793)/1000 -> 324.62 | N8: Źle | P8: =COUNTIF($H$7:$H$207,"Źle") -> 15
A9: =A8+1 -> 3 | B9: JAKUB | C9: HAPONIUK | D9: M | E9: 3 | F9: 11 | G9: 2350 | H9: DOBRZE | I9: SP11 | K9: Średni dystans | L9: =L8/L7 -> 2.318714286 | N9: Bardzo źle | P9: =COUNTIF($H$7:$H$207,"Bardzo źle") -> 11
A10: =A9+1 -> 4 | B10: JOANNA | C10: DĄBROWSKA | D10: K | E10: 4 | F10: 42 | G10: 2250 | H10: DOBRZE | L10: Najmłodszy uczestnik | O10: =MIN($F$6:$F$207) -> 3.833333333
A11: =A10+1 -> 5 | B11: WOJCIECH | C11: DĄBROWSKI | D11: M | E11: 5 | F11: 10 | G11: 2800 | H11: BARDZO DOBRZE | I11: SP11 | L11: Najstarszy uczestnik | O11: =MAX($F$7:$F$207) -> 66
A12: =A11+1 -> 6 | B12: BŁAŻEJ | C12: KOBIESZKO | D12: M | E12: 6 | F12: 20 | G12: 2750 | H12: DOBRZE | I12: PB | L12: Najdłuższy dystans | O12: =MAX($G$7:$G$207)/1000 -> 3.7
A13: =A12+1 -> 7 | B13: KAMIL | C13: KORONKIEWICZ | D13: M | E13: 7 | F13: 22 | G13: 2750 | H13: DOBRZE | I13: PB
A14: =A13+1 -> 8 | B14: JULITA | C14: KASJANIUK | D14: K | E14: 8 | F14: 21 | G14: 2750 | H14: BARDZO DOBRZE | I14: KU AZS WSWFIT BIAŁYSTOK | K14: średni wiek | L14: =SUM($F$7:$F$207)/SUM(L5:L6) -> 25.42738095
A15: =A14+1 -> 9 | B15: KRZYSZTOF | C15: SIEŚKIEWICZ | D15: M | E15: 9 | F15: 49 | G15: 3050 | H15: BARDZO DOBRZE | I15: BSB
A16: =A15+1 -> 10 | B16: JACEK | C16: JARMOŁOWICZ | D16: M | E16: 10 | F16: 50 | G16: 3330 | H16: BARDZO DOBRZE | I16: MD RUN TRAINING
A17: =A16+1 -> 11 | B17: JAROSŁAW | C17: BOSIACKI | D17: M | E17: 11 | F17: 39 | G17: 3150 | H17: BARDZO DOBRZE | I17: MD RUN TRAINING
A18: =A17+1 -> 12 | B18: MAŁGORZATA | C18: JARMOŁOWICZ | D18: K | E18: 12 | F18: 52 | G18: 2930 | H18: BARDZO DOBRZE | I18: MD RUN TRAINING
A19: =A18+1 -> 13 | B19: MAGDALENA | C19: LENKIEWICZ | D19: K | E19: 13 | F19: 39 | G19: 2050 | H19: DOBRZE
A20: =A19+1 -> 14 | B20: PAWEŁ | C20: LENKIEWICZ | D20: M | E20: 14 | F20: 35 | G20: 2930 | H20: BARDZO DOBRZE | I20: MD RUN TRAINING
A21: =A20+1 -> 15 | B21: SEBASTIAN | C21: KOT | D21: M | E21: 15 | F21: 25 | G21: 3250 | H21: BARDZO DOBRZE | I21: MD RUN TRAINING
A22: =A21+1 -> 16 | B22: RAFAŁ | C22: ORZEŁOWSKI | D22: M | E22: 16 | F22: 46 | G22: 2950 | H22: BARDZO DOBRZE | I22: MD RUN TRAINING
A23: =A22+1 -> 17 | B23: JACEK | C23: MORAWSKI | D23: M | E23: 17 | F23: 52 | G23: 2910 | H23: BARDZO DOBRZE | I23: MD RUN TRAINING
A24: =A23+1 -> 18 | B24: PIOTR | C24: KONDRACIUK | D24: M | E24: 18 | F24: 45 | G24: 2900 | H24: BARDZO DOBRZE | I24: XIII LO
A25: =A24+1 -> 19 | B25: ANDZRZEJ | C25: KONDRACIUK | D25: M | E25: 19 | F25: 15 | G25: 3200 | H25: BARDZO DOBRZE | I25: SP5
A26: =A25+1 -> 20 | B26: PAWEŁ | C26: KONDRACIUK | D26: M | E26: 20 | F26: 18 | G26: 3200 | H26: BARDZO DOBRZE | I26: IIILO
A27: =A26+1 -> 21 | B27: TOMASZ | C27: MAKAŁUS | D27: M | E27: 21 | F27: 45 | G27: 3400 | H27: BARDZO DOBRZE
A28: =A27+1 -> 22 | B28: WERONIKA WIKTORIA | C28: CITKO | D28: K | E28: 22 | F28: 19 | G28: 2250 | H28: DOBRZE
A29: =A28+1 -> 23 | B29: GRZEGORZ | C29: CHRZANOWSKI | D29: M | E29: 23 | F29: 20 | G29: 2250 | H29: ŚREDNIO | I29: PB
A30: =A29+1 -> 24 | B30: IWONA | C30: RAKOWSKA | D30: K | E30: 24 | F30: 41 | G30: 2850 | H30: BARDZO DOBRZE
A31: =A30+1 -> 25 | B31: ALEKSANDRA | C31: MOJSAK | D31: K | E31: 25 | F31: 11 | G31: 1850 | H31: ŚREDNIO | I31: SP11
A32: =A31+1 -> 26 | B32: JOANNA | C32: WOŁCZUK | D32: K | E32: 26 | F32: 47 | G32: 2100 | H32: DOBRZE | I32: SP11
A33: =A32+1 -> 27 | B33: PAWEŁ | C33: JABŁOŃSKI | D33: M | E33: 27 | F33: 7 | G33: 2100 | H33: BARDZO DOBRZE | I33: SP6
A34: =A33+1 -> 28 | B34: JERZY | C34: MYDLARZ | D34: M | E34: 28 | F34: 66 | G34: 2500 | H34: BARDZO DOBRZE | I34: JUVENIA B-STOK
A35: =A34+1 -> 29 | B35: LIZAVETA | C35: BELAHRYVAYA | D35: K | E35: 29 | F35: 18 | G35: 1600 | H35: ŹLE | I35: PB
A36: =A35+1 -> 30 | B36: PRZEMYSŁAW | C36: KLEJNO | D36: M | E36: 30 | F36: 21 | G36: 3050 | H36: BARDZO DOBRZE | I36: PB
A37: =A36+1 -> 31 | B37: MAGDALENA | C37: KORECKA | D37: K | E37: 31 | F37: 21 | G37: 1400 | H37: BARDZO ŹLE | I37: PB
A38: =A37+1 -> 32 | B38: JAKUB | C38: BURZYŃSKI | D38: M | E38: 32 | F38: 22 | G38: 2150 | H38: ŚREDNIO | I38: DZIESIECINY
A39: =A38+1 -> 33 | B39: MATEUSZ | C39: DENIAŃCZUK | D39: M | E39: 33 | F39: 21 | G39: 1550 | H39: BARDZO ŹLE | I39: PB
A40: =A39+1 -> 34 | B40: MATEUSZ | C40: BUŁAK | D40: M | E40: 34 | F40: 21 | G40: 2300 | H40: ŚREDNIO | I40: PB
A41: =A40+1 -> 35 | B41: MATEUSZ | C41: SZUBERSKI | D41: M | E41: 35 | F41: 21 | G41: 2200 | H41: ŚREDNIO | I41: PB
A42: =A41+1 -> 36 | B42: KAROL | C42: OSTASZEWSKI | D42: M | E42: 36 | F42: 21 | G42: 2450 | H42: DOBRZE | I42: PB
A43: =A42+1 -> 37 | B43: MARIA | C43: SUJETA | D43: K | E43: 37 | F43: 14 | G43: 2550 | H43: BARDZO DOBRZE | I43: SP6
A44: =A43+1 -> 38 | B44: MARCELINA | C44: CIULKIN | D44: K | E44: 38 | F44: 13 | G44: 2200 | H44: BARDZO DOBRZE | I44: SP6
A45: =A44+1 -> 39 | B45: DAMIAN | C45: OLSZYŃSKI | D45: M | E45: 39 | F45: 20 | G45: 2025 | H45: ŹLE | I45: PB
A46: =A45+1 -> 40 | B46: BEATA | C46: ROSŁAN | D46: K | E46: 40 | F46: 20 | G46: 1890 | H46: ŚREDNIO | I46: PB
A47: =A46+1 -> 41 | B47: PATRYCJA | C47: ŚWIERZBIŃSKA | D47: K | E47: 41 | F47: 20 | G47: 1880 | H47: ŚREDNIO | I47: PB
A48: =A47+1 -> 42 | B48: KATARZYNA | C48: KULIK | D48: K | E48: 42 | F48: 22 | G48: 1500 | H48: ŹLE | I48: PB
A49: =A48+1 -> 43 | B49: DOROTA | C49: LEWCZUK | D49: K | E49: 43 | F49: 41 | G49: 1800 | H49: ŚREDNIO
A50: =A49+1 -> 44 | B50: MAŁGORZATA | C50: KULIK | D50: K | E50: 44 | F50: 20 | G50: 1700 | H50: ŹLE | I50: PB | J50: !
A51: =A50+1 -> 45 | B51: JUSTYNA | C51: ZAJKO | D51: K | E51: 45 | F51: 20 | G51: 1800 | H51: ŚREDNIO | I51: UMB
A52: =A51+1 -> 46 | B52: DAWID | C52: GAWRYŁO | D52: M | E52: 46 | F52: 18 | G52: 2800 | H52: DOBRZE
A53: =A52+1 -> 47 | B53: SZYMON | C53: GAWRYŁO | D53: M | E53: 47 | F53: 16 | G53: 1650 | H53: BARDZO ŹLE | I53: ZSZ2
A54: =A53+1 -> 48 | B54: PRZEMYSŁAW | C54: DAWIDZIUK | D54: M | E54: 48 | F54: 27 | G54: 3100 | H54: BARDZO DOBRZE
A55: =A54+1 -> 49 | B55: MATEUSZ | C55: GIEROS | D55: M | E55: 49 | F55: 20 | G55: 2750 | H55: DOBRZE | I55: PB
A56: =A55+1 -> 50 | B56: MACIEJ | C56: FENDER | D56: M | E56: 50 | F56: 20 | G56: 2150 | H56: ŹLE | I56: PB
A57: =A56+1 -> 51 | B57: KRZYSZTOF | C57: FUNKOWSKI | D57: M | E57: 51 | F57: 21 | G57: 2300 | H57: ŚREDNIO | I57: PB
A58: =A57+1 -> 52 | B58: ADRIAN | C58: GRZYMKOWSKI | D58: M | E58: 52 | F58: 21 | G58: 2650 | H58: DOBRZE | I58: UMB
A59: =A58+1 -> 53 | B59: KONRAD | C59: KĘDZIOREK | D59: M | E59: 53 | F59: 20 | G59: 2400 | H59: DOBRZE | I59: PB
A60: =A59+1 -> 54 | B60: ADRIAN | C60: JABŁOŃSKI | D60: M | E60: 54 | F60: 21 | G60: 2250 | H60: ŚREDNIO | I60: PB
A61: =A60+1 -> 55 | B61: FILIP | C61: BRANCEWICZ | D61: M | E61: 55 | F61: 20 | G61: 2250 | H61: ŚREDNIO | I61: PB
A62: =A61+1 -> 56 | B62: JAKUB | C62: ŁAWRESZUK | D62: M | E62: 56 | F62: 21 | G62: 1950 | H62: ŹLE | I62: PB
A63: =A62+1 -> 57 | B63: MICHAŁ | C63: DZIENISIK | D63: M | E63: 57 | F63: 19 | G63: 2900 | H63: DOBRZE | I63: PB
A64: =A63+1 -> 58 | B64: JULIA | C64: NAWACKA | D64: K | E64: 58 | F64: 21 | G64: 1400 | H64: BARDZO ŹLE | I64: PB
A65: =A64+1 -> 59 | B65: WIKTORIA | C65: JANASZEK | D65: K | E65: 59 | F65: 21 | G65: 1400 | H65: BARDZO ŹLE | I65: PB
A66: =A65+1 -> 60 | B66: HUBERT | C66: BUSŁOWSKI | D66: M | E66: 60 | F66: 22 | G66: 2000 | H66: ŹLE | I66: PB
A67: =A66+1 -> 61 | B67: JULIA | C67: KOZŁOWSKA | D67: K | E67: 61 | F67: 21 | G67: 2400 | H67: DOBRZE | I67: PB
A68: =A67+1 -> 62 | B68: ŁUKASZ | C68: CZEREMCHA | D68: M | E68: 62 | F68: 23 | G68: 1500 | H68: BARDZO ŹLE | I68: PB
A69: =A68+1 -> 63 | B69: IZA | C69: MAŁYSZKO | D69: K | E69: 63 | F69: 34 | G69: 2450 | H69: DOBRZE | I69: BIEGAM BO LUBIĘ
A70: =A69+1 -> 64 | B70: PIOTR | C70: ABRAMOWICZ | D70: M | E70: 64 | F70: 42 | G70: 2200 | H70: DOBRZE | I70: BBL
A71: =A70+1 -> 65 | B71: KATARZYNA | C71: KULESZA | D71: K | E71: 65 | F71: 39 | G71: 2550 | H71: BARDZO DOBRZE
A72: =A71+1 -> 66 | B72: EWA | C72: WASILEWSKA | D72: K | E72: 66 | F72: 47 | G72: 2550 | H72: BARDZO DOBRZE
A73: =A72+1 -> 67 | B73: PATRYK | C73: KIEDA | D73: M | E73: 67 | F73: 31 | G73: 3050 | H73: BARDZO DOBRZE
A74: =A73+1 -> 68 | B74: PRZEMYSŁAW | C74: GODEBSKI | D74: M | E74: 68 | F74: 30 | G74: 3095 | H74: BARDZO DOBRZE
A75: =A74+1 -> 69 | B75: MARIA | C75: SZLACHTA | D75: K | E75: 69 | F75: 33 | G75: 2800 | H75: BARDZO DOBRZE | I75: BBL
A76: =A75+1 -> 70 | B76: KATARZYNA | C76: GODEBSKA | D76: K | E76: 70 | F76: 29 | G76: 1400 | H76: BARDZO ŹLE
A77: =A76+1 -> 71 | B77: MAGDALENA | C77: GODEBSKA | D77: K | E77: 71 | F77: 3.833333333 | G77: 1400 | H77: BARDZO DOBRZE
A78: =A77+1 -> 72 | B78: JAN | C78: BARTOSZEWICZ | D78: M | E78: 72 | F78: 39 | G78: 3000 | H78: BARDZO DOBRZE
A79: =A78+1 -> 73 | B79: JOANNA | C79: BORODZIUK | D79: K | E79: 73 | F79: 52 | G79: 1850 | H79: DOBRZE
A80: =A79+1 -> 74 | B80: SZYMON | C80: BORODZIUK | D80: M | E80: 74 | F80: 24 | G80: 2600 | H80: DOBRZE
A81: =A80+1 -> 75 | B81: JAKUB | C81: BORODZIUK | D81: M | E81: 75 | F81: 11 | G81: 1900 | H81: ŚREDNIO | I81: SP49
A82: =A81+1 -> 76 | B82: MATEUSZ | C82: LISOWSKI | D82: M | E82: 76 | F82: 21 | G82: 2250 | H82: ŚREDNIO | I82: PB
A83: =A82+1 -> 77 | B83: JAKUB | C83: MAKAREWICZ | D83: M | E83: 77 | F83: 20 | G83: 2150 | H83: ŹLE | I83: PB
A84: =A83+1 -> 78 | B84: RAFAŁ | C84: TYSZUK | D84: M | E84: 78 | F84: 20 | G84: 2250 | H84: ŚREDNIO | I84: PB
A85: =A84+1 -> 79 | B85: KRZYSZTOF | C85: IŁENDO | D85: M | E85: 79 | F85: 22 | G85: 1950 | H85: ŹLE | I85: PB
A86: =A85+1 -> 80 | B86: ANNA | C86: JELSKA | D86: K | E86: 80 | F86: 11 | G86: 2400 | H86: BARDZO DOBRZE | I86: SP9
A87: =A86+1 -> 81 | B87: MAKSYMILIAN | C87: WALESIUK | D87: M | E87: 81 | F87: 11 | G87: 2800 | H87: BARDZO DOBRZE | I87: SP9
A88: =A87+1 -> 82 | B88: JUSTYNA | C88: DUBICKA | D88: K | E88: 82 | F88: 20 | G88: 2200 | H88: DOBRZE | I88: UMB
A89: =A88+1 -> 83 | B89: URSZULA | C89: LULKIEWICZ | D89: K | E89: 83 | F89: 10 | G89: 2450 | H89: BARDZO DOBRZE | I89: SP9
A90: =A89+1 -> 84 | B90: RADOSŁAW | C90: LULKIEWICZ | D90: M | E90: 84 | F90: 8 | G90: 2700 | H90: BARDZO DOBRZE | I90: SP9
A91: =A90+1 -> 85 | B91: ANNA | C91: CZERNIAKIEWICZ | D91: K | E91: 85 | F91: 41 | G91: 2050 | H91: DOBRZE
A92: =A91+1 -> 86 | B92: PIOTR | C92: DOLIŃSKI | D92: M | E92: 86 | F92: 37 | G92: 2450 | H92: DOBRZE
A93: =A92+1 -> 87 | B93: ADAM | C93: DUBOWSKI | D93: M | E93: 87 | F93: 23 | G93: 2400 | H93: DOBRZE
A94: =A93+1 -> 88 | B94: DARIA | C94: WASILEWSKA | D94: K | E94: 88 | F94: 24 | G94: 1900 | H94: ŚREDNIO | I94: UMB
A95: =A94+1 -> 89 | B95: JAROSŁAW | C95: GRYGORCZYK | D95: M | E95: 89 | F95: 53 | G95: 2550 | H95: BARDZO DOBRZE | I95: B.B.L.
A96: =A95+1 -> 90 | B96: ANSARULLAH | C96: ANWAR | D96: M | E96: 90 | F96: 26 | G96: 2900 | H96: BARDZO DOBRZE | I96: UMB
A97: =A96+1 -> 91 | B97: DAWID | C97: ŻUROWICKI | D97: M | E97: 91 | F97: 27 | G97: 2200 | H97: ŚREDNIO
A98: =A97+1 -> 92 | B98: MICHAŁ | C98: GOLECZKA | D98: M | E98: 92 | F98: 23 | G98: 2430 | H98: DOBRZE | I98: UMB
A99: =A98+1 -> 93 | B99: MICHAŁ | C99: CHOLEWSKI | D99: M | E99: 93 | F99: 37 | G99: 2000 | H99: ŚREDNIO | I99: STRONIARZ.PL
A100: =A99+1 -> 94 | B100: WOJCIECH | C100: ARTYSZEWICZ | D100: M | E100: 94 | F100: 21 | G100: 1850 | H100: ŹLE | I100: PB
A101: =A100+1 -> 95 | B101: IGNACY | C101: SUŁKOWSKI | D101: M | E101: 95 | F101: 21 | G101: 2600 | H101: DOBRZE | I101: PB
A102: =A101+1 -> 96 | B102: WERONIKA | C102: FOLGA | D102: K | E102: 96 | F102: 21 | G102: 2000 | H102: ŚREDNIO | I102: PB
A103: =A102+1 -> 97 | B103: BARTEK | C103: TRUSZKOWSKI | D103: M | E103: 97 | F103: 21 | G103: 2600 | H103: DOBRZE | I103: PB
A104: =A103+1 -> 98 | B104: MILENA | C104: ZARACHOWICZ | D104: K | E104: 98 | F104: 20 | G104: 1750 | H104: ŹLE | I104: PB
A105: =A104+1 -> 99 | B105: MICHAŁ | C105: ROGIŃSKI | D105: M | E105: 99 | F105: 22 | G105: 2000 | H105: ŹLE | I105: PB
A106: =A105+1 -> 100 | B106: PAWEŁ | C106: KUKLIŃSKI | D106: M | E106: 100 | F106: 34 | G106: 1400 | H106: BARDZO ŹLE | I106: PB
A107: =A106+1 -> 101 | B107: JULIA | C107: KUKLIŃSKA | D107: K | E107: 101 | F107: 7 | G107: 1400 | H107: ŚREDNIO | I107: PS31
A108: =A107+1 -> 102 | B108: HANNA | C108: KUKLIŃSKA | D108: K | E108: 102 | F108: 4 | G108: 1400 | H108: DOBRZE | I108: PS31
A109: =A108+1 -> 103 | B109: JAVIER | C109: BLANCO | D109: M | E109: 103 | F109: 22 | G109: 2150 | H109: ŹLE | I109: UMB
A110: =A109+1 -> 104 | B110: ANDRZEJ | C110: WALICKI | D110: M | E110: 104 | F110: 44 | G110: 2750 | H110: BARDZO DOBRZE
A111: =A110+1 -> 105 | B111: WOJTEK | C111: WALICKI | D111: M | E111: 105 | F111: 12 | G111: 2750 | H111: BARDZO DOBRZE | I111: SP43
A112: =A111+1 -> 106 | B112: PABLO | C112: DELGADO RVEDA | D112: M | E112: 106 | F112: 24 | G112: 3050 | H112: BARDZO DOBRZE | I112: UMB
A113: =A112+1 -> 107 | B113: KATARZYNA | C113: KUKLIŃSKA | D113: K | E113: 107 | F113: 34 | G113: 1900 | H113: ŚREDNIO
A114: =A113+1 -> 108 | B114: EWA | C114: KRASOWSKA | D114: K | E114: 108 | F114: 25 | G114: 1950 | H114: ŚREDNIO
A115: =A114+1 -> 109 | B115: DAMIAN | C115: KRASOWSKI | D115: M | E115: 109 | F115: 34 | G115: 3200 | H115: BARDZO DOBRZE
A116: =A115+1 -> 110 | B116: ADAM | C116: WNOROWSKI | D116: M | E116: 110 | F116: 23 | G116: 1800 | H116: ŹLE | I116: PB
A117: =A116+1 -> 111 | B117: MONIKA | C117: NIEDŹWIEDZKA | D117: K | E117: 111 | F117: 22 | G117: 2450 | H117: DOBRZE | I117: UMB
A118: =A117+1 -> 112 | B118: PAVEL | C118: HRYTSKO | D118: M | E118: 112 | F118: 21 | G118: 2550 | H118: DOBRZE | I118: PB
A119: =A118+1 -> 113 | B119: VIYALETA | C119: RUSHNITSKAYA | D119: K | E119: 113 | F119: 21 | G119: 2200 | H119: DOBRZE | I119: PB
A120: =A119+1 -> 114 | B120: ANNA | C120: BAŃKOWSKA | D120: K | E120: 114 | F120: 30 | G120: 3700 | H120: BARDZO DOBRZE
A121: =A120+1 -> 115 | B121: ROBERT | C121: KELLAS | D121: M | E121: 115 | F121: 23 | G121: 2700 | H121: DOBRZE | I121: EDUCENTRUM
A122: =A121+1 -> 116 | B122: DAWID | C122: PAWŁOWSKI | D122: M | E122: 116 | F122: 26 | G122: 1600 | H122: ŹLE | I122: PB
A123: =A122+1 -> 117 | B123: PATRYK | C123: WALENDZIUK | D123: M | E123: 117 | F123: 23 | G123: 2700 | H123: DOBRZE | I123: PB
A124: =A123+1 -> 118 | B124: NATALIA | C124: MICHAŁOWSKA | D124: K | E124: 118 | F124: 19 | G124: 1550 | H124: BARDZO ŹLE | I124: PB
A125: =A124+1 -> 119 | B125: KINGA | C125: FURMANIK | D125: K | E125: 119 | F125: 19 | G125: 1450 | H125: BARDZO ŹLE | I125: PB
A126: =A125+1 -> 120 | B126: JAKUB | C126: KOWALCZUK | D126: M | E126: 120 | F126: 22 | G126: 2150 | H126: ŚREDNIO | I126: UWB
A127: =A126+1 -> 121 | B127: KRZYSZTOF | C127: BURZLOFF | D127: M | E127: 121 | F127: 22 | G127: 2400 | H127: DOBRZE | I127: PB
A128: =A127+1 -> 122 | B128: GABRIEL | C128: GRABOWSKI | D128: M | E128: 122 | F128: 21 | G128: 2400 | H128: DOBRZE | I128: PB
A129: =A128+1 -> 123 | B129: JAN | C129: DOBKOWSKI | D129: M | E129: 123 | F129: 19 | G129: 1950 | H129: BARDZO ŹLE | I129: PB
A130: =A129+1 -> 124 | B130: PAWEŁ | C130: ORZEŁ | D130: M | E130: 124 | F130: 22 | G130: 2750 | H130: DOBRZE | I130: PB
A131: =A130+1 -> 125 | B131: ŁUKASZ | C131: ROSZKOWSKI | D131: M | E131: 125 | F131: 32 | G131: 3000 | H131: BARDZO DOBRZE | I131: KS PODLASIE BIAŁYSTOK
A132: =A131+1 -> 126 | B132: HUBERT | C132: KOROWICKI | D132: M | E132: 126 | F132: 24 | G132: 2800 | H132: BARDZO DOBRZE | I132: UMB
A133: =A132+1 -> 127 | B133: MATEUSZ | C133: MARKIEWICZ | D133: M | E133: 127 | F133: 21 | G133: 2700 | H133: DOBRZE | I133: UMB
A134: =A133+1 -> 128 | B134: KRYSTIAN | C134: MYK | D134: M | E134: 128 | F134: 20 | G134: 2300 | H134: ŚREDNIO | I134: PB
A135: =A134+1 -> 129 | B135: EMILIA | C135: OLSZEWSKA | D135: K | E135: 129 | F135: 42 | G135: 1650 | H135: ŚREDNIO
A136: =A135+1 -> 130 | B136: GABRIEL | C136: OLSZEWSKI | D136: M | E136: 130 | F136: 21 | G136: 2200 | H136: ŚREDNIO | I136: PB
A137: =A136+1 -> 131 | B137: MAGDALENA | C137: SAWICKA | D137: K | E137: 131 | F137: 25 | G137: 2400 | H137: DOBRZE | I137: PB
A138: =A137+1 -> 132 | B138: KLARA | C138: WOJTKOWSKA | D138: K | E138: 132 | F138: 21 | G138: 2400 | H138: DOBRZE | I138: PB
A139: =A138+1 -> 133 | B139: KAMIL | C139: KURYŁOWICZ | D139: M | E139: 133 | F139: 35 | G139: 2200 | H139: ŚREDNIO
A140: =A139+1 -> 134 | B140: MONIKA | C140: KURYŁOWICZ | D140: K | E140: 134 | F140: 34 | G140: 1850 | H140: ŚREDNIO
A141: =A140+1 -> 135 | B141: GABRIELA | C141: KURYŁOWICZ | D141: K | E141: 135 | F141: 6 | G141: 1400 | H141: DOBRZE
A142: =A141+1 -> 136 | B142: DANIEL | C142: BREŃKO | D142: M | E142: 136 | F142: 34 | G142: 2300 | H142: DOBRZE
A143: =A142+1 -> 137 | B143: EMILIA | C143: CECERKO | D143: K | E143: 137 | F143: 34 | G143: 1850 | H143: ŚREDNIO
A144: =A143+1 -> 138 | B144: IGOR | C144: CECERKO | D144: M | E144: 138 | F144: 6 | G144: 1400 | H144: DOBRZE
A145: =A144+1 -> 139 | B145: TOMASZ | C145: KUKLIŃSKI | D145: M | E145: 139 | F145: 41 | G145: 1700 | H145: ŚREDNIO
A146: =A145+1 -> 140 | B146: PATRYCJA | C146: KITLAS | D146: K | E146: 140 | F146: 21 | G146: 1850 | H146: ŚREDNIO | I146: PB
A147: =A146+1 -> 141 | B147: KATARZYNA | C147: PIEKARNIAK | D147: K | E147: 141 | F147: 21 | G147: 1900 | H147: ŚREDNIO | I147: PB
A148: =A147+1 -> 142
A149: =A148+1 -> 143
A150: =A149+1 -> 144
A151: =A150+1 -> 145
A152: =A151+1 -> 146
A153: =A152+1 -> 147
A154: =A153+1 -> 148
A155: =A154+1 -> 149
A156: =A155+1 -> 150
A157: =A156+1 -> 151
A158: =A157+1 -> 152
A159: =A158+1 -> 153
A160: =A159+1 -> 154
A161: =A160+1 -> 155
A162: =A161+1 -> 156
A163: =A162+1 -> 157
A164: =A163+1 -> 158
A165: =A164+1 -> 159
A166: =A165+1 -> 160
A167: =A166+1 -> 161
A168: =A167+1 -> 162
A169: =A168+1 -> 163
A170: =A169+1 -> 164
A171: =A170+1 -> 165
A172: =A171+1 -> 166
A173: =A172+1 -> 167
A174: =A173+1 -> 168
A175: =A174+1 -> 169
A176: =A175+1 -> 170
A177: =A176+1 -> 171
A178: =A177+1 -> 172
A179: =A178+1 -> 173
A180: =A179+1 -> 174
A181: =A180+1 -> 175
A182: =A181+1 -> 176
A183: =A182+1 -> 177
A184: =A183+1 -> 178
A185: =A184+1 -> 179
A186: =A185+1 -> 180
A187: =A186+1 -> 181
A188: =A187+1 -> 182
A189: =A188+1 -> 183
A190: =A189+1 -> 184
A191: =A190+1 -> 185
A192: =A191+1 -> 186
A193: =A192+1 -> 187
A194: =A193+1 -> 188
A195: =A194+1 -> 189
A196: =A195+1 -> 190
A197: =A196+1 -> 191
A198: =A197+1 -> 192
A199: =A198+1 -> 193
A200: =A199+1 -> 194
... 603 more rows

Sheet Arkusz2
